Workbook

Sheet BondingArtifact
A1: Date | B1: In | C1: Out | D1: HMS
A2: 2023-07-02 | B2: 21:23:27 | C2: 21:48:27 | D2: =IF(OR(ISBLANK(C2), ISBLANK(B2)), TIME(0, 15, 0), (C2 - B2) + TIME(0, 15, 0)) -> 0.02777777778
A3: 2024-01-09 | B3: 13:35:57 | C3: 17:44:27 | D3: =IF(OR(ISBLANK(C3), ISBLANK(B3)), TIME(0, 15, 0), (C3 - B3) + TIME(0, 15, 0)) -> 0.1829861111
A4: 2024-01-10 | B4: 19:33:28 | C4: 19:53:31 | D4: 0.02434027778
A5: 2024-01-11 | B5: 16:55:01 | D5: 0.01041666667
B6: 18:45:29 | C6: 23:40:54 | D6: 0.2155671296
A7: 2024-01-12 | B7: 00:05:22 | D7: 0.01041666667
B8: 14:00:50 | D8: 0.01041666667
B9: 19:34:09 | D9: 0.01041666667
A10: 2024-01-13 | B10: 01:46:04 | C10: 02:02:45 | D10: 0.02200231481
B11: 13:29:36 | C11: 14:12:53 | D11: 0.04047453704
A12: 2024-01-14 | B12: 15:55:22 | C12: 18:54:34 | D12: 0.1348611111
B13: 20:02:03 | C13: 21:15:06 | D13: 0.06114583333
B14: 23:04:34 | C14: 23:40:20 | D14: 0.03525462963
A15: 2024-01-15 | B15: 20:59:20 | C15: 21:46:10 | D15: 0.04293981481
A16: 2024-01-16 | B16: 01:03:40 | C16: 01:08:09 | D16: 0.01353009259
B17: 11:41:14 | C17: 15:51:27 | D17: 0.1841782407
B18: 17:58:46 | C18: 19:27:03 | D18: 0.07172453704
B19: 23:19:13 | D19: 0.01041666667
A20: 2024-01-17 | B20: 15:41:25 | D20: 0.01041666667
B21: 18:20:07 | C21: 19:43:20 | D21: 0.06820601852
B22: 21:45:49 | C22: 22:23:52 | D22: 0.03684027778
A23: 2024-01-18 | B23: 14:08:05 | C23: 21:23:40 | D23: 0.3129050926
A24: 2024-01-22 | B24: 00:42:24 | D24: 0.01041666667
B25: 16:18:04 | C25: 22:44:53 | D25: 0.2790393519
A26: 2024-01-23 | B26: 12:48:42 | C26: 14:26:56 | D26: 0.07863425926
A27: 2024-02-19 | B27: 18:51:54 | D27: 0.01041666667
B28: 21:43:09 | D28: 0.01041666667
A29: 2024-02-20 | B29: 08:32:09 | C29: 09:59:23 | D29: 0.07099537037
B30: 12:22:00 | C30: 18:29:25 | D30: 0.2655671296
A31: 2024-03-18 | B31: 13:50:50 | C31: 22:22:42 | D31: 0.3658796296
A32: 2024-03-24 | B32: 15:39:18 | C32: 15:46:54 | D32: 0.01569444444
A33: 2024-04-02 | B33: 13:31:48 | C33: 14:34:20 | D33: 0.05384259259
A34: 2024-04-09 | B34: 19:14:57 | C34: 19:20:07 | D34: 0.01400462963
A35: 2024-04-10 | B35: 13:00:59 | C35: 13:20:06 | D35: 0.02369212963
B36: 16:18:02 | C36: 17:09:54 | D36: 0.04643518519
A37: 2024-04-11 | B37: 13:44:33 | C37: 14:30:54 | D37: 0.04260416667
B38: 17:46:51 | C38: 19:34:12 | D38: 0.08496527778
B39: 21:05:05 | D39: 0.01041666667
A40: 2024-04-13 | B40: 23:29:41 | C40: 23:45:58 | D40: 0.02172453704
A41: 2024-06-02 | B41: 21:46:48 | C41: 23:50:07 | D41: 0.09605324074
B42: 00:50:15 | D42: 0.01041666667
A43: 2024-06-03 | B43: 18:19:26 | C43: 20:33:53 | D43: 0.1037847222
B44: 23:03:05 | C44: 23:15:45 | D44: 0.01921296296
A45: 2024-06-04 | B45: 11:56:03 | D45: 0.01041666667
A46: 2024-07-29 | B46: 16:45:04 | C46: 19:03:21 | D46: 0.1064467593
A47: 2024-08-14 | B47: 10:40:41 | C47: 13:34:03 | D47: 0.1308101852
B48: 17:08:42 | C48: 18:05:35 | D48: 0.04991898148
A49: 2024-08-21 | B49: 12:39:14 | D49: 0.01041666667
A50: 2024-11-20 | B50: 09:22:59 | C50: 15:07:23 | D50: 0.2495833333
A51: 2024-12-18 | B51: 09:02:49 | D51: 0.01041666667
A52: 2025-01-08 | B52: 18:13:31 | D52: 0.01041666667
E53: Pay | F53: Hourly Rate
C54: Total | D54: =SUM(D2:D53) -> 3.749872685 | E54: =D54*F54*24 -> $2,249.92 | F54: =F58 -> $25.00
C58: Pillow | D58: =Pillow!D8 -> 0.285775463 | E58: =D58*F58*24 -> $171.47 | F58: $25.00
C59: MOTDFrame | D59: =MOTDFrame!D10 -> 0.4218055556 | E59: $253.08 | F59: =F58 -> $25.00
C60: knob | D60: =knob!D9 -> 0.3999884259 | E60: $239.99 | F60: =F58 -> $25.00
C61: gems | D61: =gems!D18 -> 0.9871527778 | E61: $592.29 | F61: =F58 -> $25.00
C62: gaslight | D62: =gaslight!D10 -> 0.3787037037 | E62: $227.22 | F62: =F58 -> $25.00
C63: ArtifactObsidian | D63: =ArtifactObsidian!D24 -> 1.604282407 | E63: $962.57 | F63: =F58 -> $25.00
C64: OB1retopo | D64: =Obsidian1retopo!D18 -> 1.73931713 | E64: $1,043.59 | F64: =F58 -> $25.00
C65: OB2retopo | D65: =Obsidian2etopo!D20 -> 1.989386574 | E65: $1,193.63 | F65: =F58 -> $25.00
C66: GRAND | D66: =SUM(D54,Pillow!D8,MOTDFrame!D10,knob!D9,gems!D18,gaslight!D10,ArtifactObsidian!D24,Obsidian1retopo!D18,Obsidian2etopo!D20) -> 1900-01-11T13:21:03 | E66: $6,933.77 | F66: =F58 -> $25.00
D67: =SUM(D54,Pillow!D8,MOTDFrame!D10,knob!D9,gems!D18,gaslight!D10,ArtifactObsidian!D24,Obsidian1retopo!D18,Obsidian2etopo!D20) -> 11.55628472 | E67: $6,933.77 | F67: =F58 -> $25.00
C68: hours already in steam | D68: 110
C69: hours left | D69: =D67+SUM(E71:E84)-SUM(D71:D91) -> -0.08195601852
D70: minus | E70: plus
D71: 0.3266319444 | E71: 09:00:00
D72: 16:50:53 | E72: 00:30:00
D73: 22:38:21 | E73: 01:00:00
D74: 05:35:30 | E74: 02:17:00
D75: 11:10:20
D76: 09:48:51
D77: 14:05:29
C78: 12:31:30 interrupted, event viewer says rebooted @4:30? It's 7:00 now… | D78: 10:00:30
D79: 18:26:13
C80: I messed up | D80: 21:00:00
D81: 1.081655093
D82: 03:28:18
D83: 07:41:00
D84: 1.203368056
D85: 17:49:05
D86: 16:23:01
C87: yet another hard crash… | D87: 15:48:43
D88: 13:25:40
D89: 20:02:20
D90: 05:11:03

Sheet Pillow
A1: Date | B1: In | C1: Out | D1: HMS
A2: 2024-01-23 | B2: 14:52:35 | C2: 16:47:00 | D2: =IF(OR(ISBLANK(C2), ISBLANK(B2)), TIME(0, 15, 0), (C2 - B2) + TIME(0, 15, 0)) -> 0.08987268519
A3: 2024-01-24 | B3: 19:26:56 | C3: 20:05:00 | D3: 0.03685185185
A4: 2024-02-19 | B4: 18:44:38 | C4: 21:36:26 | D4: 0.1297222222
A5: 2024-02-20 | B5: 09:18:39 | D5: 0.01041666667
B6: 17:03:35 | C6: 17:15:49 | D6: 0.01891203704
E7: Pay | F7: Hourly Rate
C8: Total | D8: =SUM(D2:D7) -> 0.285775463 | E8: =D8*F8*24 -> $171.47 | F8: =BondingArtifact!F58 -> $25.00

Sheet MOTDFrame
A1: Date | B1: In | C1: Out | D1: HMS
A2: 2024-07-29 | B2: 18:42:27 | D2: =IF(OR(ISBLANK(C2), ISBLANK(B2)), TIME(0, 15, 0), (C2 - B2) + TIME(0, 15, 0)) -> 0.01041666667
A3: 2024-07-30 | B3: 17:10:43 | C3: 17:56:04 | D3: 0.04190972222
A4: 2024-08-10 | B4: 13:58:45 | C4: 16:50:50 | D4: 0.1299189815
A5: 2024-08-11 | B5: 11:53:54 | C5: 13:21:00 | D5: 0.07090277778
A6: 2024-08-12 | B6: 07:02:12 | C6: 10:07:40 | D6: 0.139212963
B7: 12:40:50 | C7: 12:46:23 | D7: 0.01427083333
B8: 14:07:09 | C8: 14:14:00 | D8: 0.01517361111
E9: Pay | F9: Hourly Rate
C10: Total | D10: =SUM(D2:D9) -> 0.4218055556 | E10: =D10*F10*24 -> $253.08 | F10: =BondingArtifact!F58 -> $25.00

Sheet knob
A1: Date | B1: In | C1: Out | D1: HMS
A2: 2024-01-17 | B2: 19:04:04 | C2: 19:42:48 | D2: =IF(OR(ISBLANK(C2), ISBLANK(B2)), TIME(0, 15, 0), (C2 - B2) + TIME(0, 15, 0)) -> 0.03731481481
A3: 2024-01-20 | B3: 16:19:49 | C3: 18:32:06 | D3: =IF(OR(ISBLANK(C3), ISBLANK(B3)), TIME(0, 15, 0), (C3 - B3) + TIME(0, 15, 0)) -> 0.1022800926
A4: 2024-01-21 | B4: 15:11:08 | C4: 19:26:21 | D4: 0.187650463
B5: 23:24:11 | D5: 0.01041666667
A6: 2024-01-22 | B6: 00:07:52 | C6: 00:28:50 | D6: 0.02497685185
B7: 15:25:09 | C7: 16:03:56 | D7: 0.03734953704
F8: Hourly Rate
C9: Total | D9: =SUM(D2:D8) -> 0.3999884259 | E9: =D9*F9*24 -> $239.99 | F9: =BondingArtifact!F58 -> $25.00

Sheet gems
A1: Date | B1: In | C1: Out | D1: HMS
A2: 2023-07-02 | B2: 21:23:27 | C2: 21:48:27 | D2: =IF(OR(ISBLANK(C2), ISBLANK(B2)), TIME(0, 15, 0), (C2 - B2) + TIME(0, 15, 0)) -> 0.02777777778
A3: 2024-04-15 | B3: 08:48:13 | C3: 09:02:21 | D3: =IF(OR(ISBLANK(C3), ISBLANK(B3)), TIME(0, 15, 0), (C3 - B3) + TIME(0, 15, 0)) -> 0.02023148148
B4: 12:09:27 | C4: 12:57:38 | D4: =IF(OR(ISBLANK(C4), ISBLANK(B4)), TIME(0, 15, 0), (C4 - B4) + TIME(0, 15, 0)) -> 0.04387731481
B5: 15:59:20 | C5: 18:50:44 | D5: 0.1294444444
A6: 2024-04-16 | B6: 16:00:40 | C6: 17:56:42 | D6: 0.09099537037
A7: 2024-05-23 | B7: 18:13:34 | C7: 21:03:12 | D7: 0.1282175926
A8: 2024-05-24 | B8: 19:08:47 | C8: 19:45:24 | D8: 0.03584490741
A9: 2024-05-26 | B9: 12:17:57 | C9: 13:35:53 | D9: 0.06453703704
A10: 2024-05-27 | B10: 15:59:00 | C10: 16:21:23 | D10: 0.02596064815
A11: 2024-05-28 | B11: 11:55:52 | C11: 15:07:15 | D11: 0.1433217593
A12: 2024-05-29 | B12: 13:56:40 | C12: 16:39:16 | D12: 0.1233333333
A13: 2024-05-30 | B13: 14:33:27 | C13: 16:16:13 | D13: 0.08178240741
B14: 21:00:43 | D14: 0.01041666667
A15: 2024-06-02 | B15: 16:08:18 | C15: 16:37:21 | D15: 0.03059027778
B16: 19:32:59 | C16: 20:02:22 | D16: 0.03082175926
F17: Hourly Rate
C18: Total | D18: =SUM(D2:D17) -> 0.9871527778 | E18: =D18*F18*24 -> $592.29 | F18: =BondingArtifact!F58 -> $25.00

Sheet gaslight
A1: Date | B1: In | C1: Out | D1: HMS
A2: 2023-07-02 | B2: 21:23:27 | C2: 21:48:27 | D2: =IF(OR(ISBLANK(C2), ISBLANK(B2)), TIME(0, 15, 0), (C2 - B2) + TIME(0, 15, 0)) -> 0.02777777778
A3: 2024-03-24 | B3: 16:02:22 | C3: 17:15:08 | D3: =IF(OR(ISBLANK(C3), ISBLANK(B3)), TIME(0, 15, 0), (C3 - B3) + TIME(0, 15, 0)) -> 0.06094907407
B4: 19:03:43 | C4: 19:16:49 | D4: =IF(OR(ISBLANK(C4), ISBLANK(B4)), TIME(0, 15, 0), (C4 - B4) + TIME(0, 15, 0)) -> 0.01951388889
A5: 2024-03-25 | B5: 19:21:40 | D5: =IF(OR(ISBLANK(C5), ISBLANK(B5)), TIME(0, 15, 0), (C5 - B5) + TIME(0, 15, 0)) -> 0.01041666667
A6: 2024-03-26 | B6: 15:56:33 | D6: 0.01041666667
A7: 2024-04-01 | B7: 12:02:08 | C7: 17:31:36 | D7: 0.239212963
A8: 2024-04-02 | B8: 12:51:54 | D8: 0.01041666667
F9: Hourly Rate
C10: Total | D10: =SUM(D2:D9) -> 0.3787037037 | E10: =D10*F10*24 -> $227.22 | F10: =BondingArtifact!F58 -> $25.00

Sheet ArtifactObsidian
A1: Date | B1: In | C1: Out | D1: HMS
A2: 2024-08-21 | B2: 13:17:45 | C2: 15:17:02 | D2: =IF(OR(ISBLANK(C2), ISBLANK(B2)), TIME(0, 15, 0), (C2 - B2) + TIME(0, 15, 0)) -> 0.09325231481
A3: 2024-08-24 | B3: 15:17:28 | D3: =IF(OR(ISBLANK(C3), ISBLANK(B3)), TIME(0, 15, 0), (C3 - B3) + TIME(0, 15, 0)) -> 0.01041666667
A4: 2024-09-02 | B4: 14:44:56 | C4: 14:59:46 | D4: 0.02071759259
A5: 2024-09-03 | B5: 17:00:12 | C5: 18:44:45 | D5: 0.08302083333
A6: 2024-09-04 | B6: 11:08:05 | C6: 12:30:43 | D6: 0.06780092593
A7: 2024-11-21 | B7: 15:16:42 | C7: 17:42:15 | D7: 0.1114930556
A8: 2024-11-22 | B8: 15:48:38 | C8: 18:25:04 | D8: 0.1190509259
A9: 2024-11-25 | B9: 10:00:35 | C9: 15:35:42 | D9: 0.2431365741
A10: 2024-11-27 | B10: 11:36:36 | C10: 18:12:00 | D10: 0.285
A11: 2024-11-29 | B11: 16:21:20 | C11: 16:56:21 | D11: 0.0347337963
A12: 2024-11-30 | B12: 12:30:43 | C12: 14:50:33 | D12: 0.1075231481
A13: 2024-12-01 | B13: 11:26:24 | C13: 13:38:04 | D13: 0.1018518519
B14: 16:32:49 | C14: 17:02:50 | D14: 0.03126157407
A15: 2024-12-02 | B15: 00:08:01 | D15: 0.01041666667
B16: 17:22:30 | D16: 0.01041666667
A17: 2024-12-03 | B17: 13:53:50 | C17: 14:54:45 | D17: 0.05271990741
A18: 2024-12-04 | B18: 10:18:39 | D18: 0.01041666667
B19: 11:05:28 | C19: 12:59:13 | D19: 0.08940972222
B20: 15:37:02 | C20: 17:47:12 | D20: 0.1008101852
A21: 2024-12-14 | B21: 18:26:41 | D21: 0.01041666667
A22: 2024-12-16 | B22: 15:44:16 | D22: 0.01041666667
F23: Hourly Rate
C24: Total | D24: =SUM(D2:D23) -> 1.604282407 | E24: =D24*F24*24 -> $962.57 | F24: =BondingArtifact!F58 -> $25.00

Sheet Obsidian1retopo
A1: Date | B1: In | C1: Out | D1: HMS
A2: 2024-08-21 | B2: 13:17:45 | C2: 15:17:02 | D2: =IF(OR(ISBLANK(C2), ISBLANK(B2)), TIME(0, 15, 0), (C2 - B2) + TIME(0, 15, 0)) -> 0.09325231481
A3: 2024-12-05 | B3: 14:28:44 | C3: 16:37:41 | D3: =IF(OR(ISBLANK(C3), ISBLANK(B3)), TIME(0, 15, 0), (C3 - B3) + TIME(0, 15, 0)) -> 0.09996527778
A4: 2024-12-06 | B4: 15:10:59 | C4: 16:43:46 | D4: 0.07484953704
A5: 2024-12-07 | B5: 11:51:15 | C5: 17:14:46 | D5: 0.2350810185
A6: 2024-12-08 | B6: 16:16:28 | C6: 18:50:56 | D6: 0.1176851852
A7: 2024-12-09 | B7: 06:43:01 | C7: 14:26:46 | D7: 0.3324652778
A8: 2024-12-10 | B8: 15:36:45 | D8: 0.01041666667
B9: 17:00:16 | C9: 18:18:08 | D9: 0.06449074074
A10: 2024-12-11 | B10: 13:35:51 | C10: 17:50:17 | D10: 0.1871064815
A11: 2024-12-13 | B11: 14:21:49 | C11: 17:46:33 | D11: 0.1525925926
A12: 2024-12-14 | B12: 15:51:11 | C12: 19:16:03 | D12: 0.1526851852
A13: 2024-12-15 | B13: 09:46:17 | C13: 11:59:46 | D13: 0.1031134259
B14: 14:19:01 | D14: 0.01041666667
B15: 16:14:15 | C15: 18:15:44 | D15: 0.09478009259
A16: 2024-12-16 | B16: 10:42:40 | D16: 0.01041666667
F17: Hourly Rate
C18: Total | D18: =SUM(D2:D17) -> 1.73931713 | E18: =D18*F18*24 -> $1,043.59 | F18: =BondingArtifact!F58 -> $25.00

Sheet Obsidian2etopo
A1: Date | B1: In | C1: Out | D1: HMS
A2: 2024-08-21 | B2: 13:17:45 | C2: 15:17:02 | D2: =IF(OR(ISBLANK(C2), ISBLANK(B2)), TIME(0, 15, 0), (C2 - B2) + TIME(0, 15, 0)) -> 0.09325231481
A3: 2024-12-16 | B3: 11:33:24 | D3: =IF(OR(ISBLANK(C3), ISBLANK(B3)), TIME(0, 15, 0), (C3 - B3) + TIME(0, 15, 0)) -> 0.01041666667
B4: 13:05:40 | C4: 15:31:16 | D4: 0.1115277778
A5: 2024-12-17 | B5: 15:01:08 | C5: 17:04:20 | D5: 0.09597222222
A6: 2024-12-18 | B6: 09:22:07 | C6: 14:17:01 | D6: 0.2152083333
B7: 16:18:48 | C7: 17:40:07 | D7: 0.06688657407
A8: 2024-12-19 | B8: 14:05:29 | C8: 17:48:07 | D8: 0.1650231481
A9: 2024-12-20 | B9: 16:11:44 | C9: 17:21:30 | D9: 0.05886574074
A10: 2024-12-22 | B10: 14:24:16 | C10: 18:52:17 | D10: 0.1965393519
A11: 2024-12-23 | B11: 14:12:16 | C11: 19:53:50 | D11: 0.2476157407
A12: 2024-12-24 | B12: 13:40:56 | C12: 16:43:06 | D12: 0.1369212963
A13: 2024-12-29 | B13: 13:49:23 | C13: 15:43:50 | D13: 0.08989583333
A14: 2024-12-30 | B14: 10:44:31 | C14: 12:51:53 | D14: 0.09886574074
B15: 17:10:03 | C15: 18:15:15 | D15: 0.05569444444
A16: 2025-01-01 | B16: 12:39:30 | C16: 17:40:28 | D16: 0.2194212963
A17: 2025-01-05 | B17: 17:10:00 | D17: 0.01041666667
A18: 2025-01-06 | B18: 13:19:51 | C18: 15:53:08 | D18: 0.1168634259
F19: Hourly Rate
C20: Total | D20: =SUM(D2:D19) -> 1.989386574 | E20: =D20*F20*24 -> $1,193.63 | F20: =BondingArtifact!F58 -> $25.00
